fUST/lending_fUST_20240122
["ID","MTS","AMOUNT","RATE_DAILY","PERIOD"]
[312468608,1705911039162,-170.79827,0.00019178,2]
[312468609,1705911039171,-309.59757263,0.00019308,2]
[312468610,1705911039184,-1197.97622761,0.0002,2]
[312468611,1705911039193,-323.13003236,0.0002,2]
[312468612,1705911039203,-151.76661882,0.0002,2]
[312468613,1705911039212,-918.477264,0.00020548,2]
[312468614,1705911039223,-232.97414454,0.00021,2]
[312468615,1705911039232,-8289.76804343,0.00021,2]
[312468616,1705911039241,-1826.00758456,0.00021,2]
[312468617,1705911039251,-166.666666,0.00021918,2]
[312468618,1705911039260,-425.98515357,0.00022,2]
[312468619,1705911039269,-293.4468762,0.00022,4]
[312468620,1705911039279,-1670.28777967,0.0002235,5]
[312468621,1705911039288,-166.666666,0.00022431,2]
[312468622,1705911039297,-166.666666,0.00022944,2]
[312468623,1705911039306,-1571.50470749,0.00023,2]
[312468624,1705911039424,-166.666666,0.00023456,2]
[312468625,1705911039437,-1602.23586387,0.000238,6]
[312468626,1705911039448,-7396.29743805,0.000239,2]
[312468627,1705911039458,-166.666666,0.00023969,2]
[312468628,1705911039468,-4014.03339386,0.00024,2]
[312468629,1705911039478,-166.666666,0.00024482,2]
[312468630,1705911039488,-824.33300328,0.000247,2]
[312468631,1705911039498,-7381.29040931,0.00025,2]
[312468632,1705911039508,-1046.35622193,0.00025,2]
[312468633,1705911039519,-358.087998,0.00025,2]
[312468634,1705911039529,-358.087998,0.00025,2]
[312468635,1705911039540,-358.087998,0.00025,2]
[312468636,1705911039563,-358.087998,0.00025,2]
[312468637,1705911039573,-378.195253,0.00026009,2]
[312468638,1705911039583,-378.195253,0.00026009,2]
[312468639,1705911039593,-804.610515,0.00026009,2]
[312468640,1705911039603,-804.610515,0.00026009,2]
[312468641,1705911039613,-151.0,0.00026009,2]
[312468642,1705911039622,-151.843705,0.00026009,2]
[312468643,1705911039631,-10000.0,0.00026009,2]
[312468644,1705911039641,-10000.0,0.00026009,2]
[312468645,1705911039650,-10000.0,0.00026009,2]
[312468646,1705911039659,-10000.0,0.00026009,2]
[312468647,1705911039668,-10000.0,0.00026009,2]
[312468648,1705911039683,-10000.0,0.00026009,2]
[312468649,1705911039692,-450.0,0.00026009,2]
[312468650,1705911039702,-450.0,0.00026009,2]
[312468651,1705911039711,-280.665725,0.00026009,2]
[312468652,1705911039721,-280.665725,0.00026009,2]
[312468653,1705911039730,-151.0,0.00026009,2]
[312468654,1705911039739,-151.0,0.00026009,2]
[312468655,1705911039749,-5000.0,0.00026009,5]
[312468656,1705911039759,-151.0,0.00026813,2]
[312468657,1705911039769,-151.0,0.00026813,2]
[312468658,1705911039778,-1253.41868812,0.00026813,2]
[312468659,1705911039789,-153.0,0.0002726,2]
[312468660,1705911039799,-155.0,0.00027397,2]
[312468661,1705911039808,-500.0,0.00027397,2]
[312468662,1705911039817,-400.0,0.00027397,2]
[312468663,1705911039827,-4925.9,0.00027397,3]
[312468664,1705911039837,-4104.91,0.00027397,3]
[312468665,1705911039846,-3420.76,0.00027397,3]
[312468666,1705911039856,-2850.64,0.00027397,3]
[312468667,1705911039865,-500.0,0.00027534,2]
[312468668,1705911039875,-500.0,0.00027671,2]
[312468669,1705911039885,-199.1966855,0.00027671,2]
[312468670,1705911039895,-307.4659568,0.00027782,2]
[312468671,1705911039907,-804.610515,0.00027808,2]
[312468672,1705911039916,-804.610515,0.00027808,2]
[312468673,1705911039928,-500.0,0.00027808,2]
[312468675,1705911039938,-153.0,0.00027882,2]
[312468676,1705911039949,-153.0,0.00027882,2]
[312468677,1705911039958,-153.0,0.00027882,2]
[312468678,1705911039968,-500.0,0.00027945,2]
[312468679,1705911039977,-355.59370813,0.00028,2]
[312468680,1705911039987,-290.32272867,0.00028,2]
[312468681,1705911039998,-600.0,0.00028,2]
[312468682,1705911040009,-307.07161549,0.00028,2]
[312468684,1705911040017,-500.0,0.00028082,2]
[312468686,1705911040026,-199.1966855,0.00028156,2]
[312468687,1705911040036,-199.1966855,0.00028156,2]
[312468688,1705911040046,-199.1966855,0.00028156,2]
[312468689,1705911040056,-500.0,0.00028219,2]
[312468690,1705911040065,-153.0,0.00028219,2]
[312468691,1705911040074,-500.0,0.00028356,2]
[312468692,1705911040084,-1936.44874779,0.00028412,5]
[312468693,1705911040094,-435.70096825,0.00028412,5]
[312468694,1705911040103,-9639.04778565,0.00028415,5]
[312468695,1705911040113,-280.665725,0.00028415,2]
[312468696,1705911040122,-280.665725,0.00028415,2]
[312468697,1705911040132,-50000.0,0.00028418,5]
[312468698,1705911040141,-50000.0,0.00028418,5]
[312468699,1705911040151,-50000.0,0.00028418,5]
[312468700,1705911040161,-64963.46452098,0.00028418,5]
[312468701,1705911040171,-10000.0,0.00028418,2]
[312468702,1705911040183,-10000.0,0.00028418,2]
[312468703,1705911040193,-10000.0,0.00028418,2]
[312468704,1705911040202,-10000.0,0.00028418,2]
[312468705,1705911040212,-10000.0,0.00028418,2]
[312468706,1705911040222,-10000.0,0.00028418,2]
[312468707,1705911040232,-10000.0,0.00028418,2]
[312468708,1705911040241,-10000.0,0.00028418,2]
[312468709,1705911040250,-10000.0,0.00028418,2]
[312468710,1705911040260,-10000.0,0.00028418,2]
[312468711,1705911040269,-10000.0,0.00028418,2]
[312468712,1705911040278,-10000.0,0.00028418,2]
[312468713,1705911040287,-10000.0,0.00028418,2]
[312468714,1705911040296,-10000.0,0.00028418,2]
[312468715,1705911040306,-10000.0,0.00028418,2]
[312468716,1705911040315,-2726.94513548,0.00028418,2]
[312468772,1705911042983,-396.85223137,0.00012746,2]
[312468775,1705911042994,-1596.64256347,0.00012746,2]
[312468776,1705911043004,-56.75743653,0.00028418,2]
[312468894,1705911046606,-2375.53,0.00028408,3]
[312468895,1705911046617,-21762.47,0.00028417,2]
[312468898,1705911056945,2767.05373625,0.00016,5]
[312468899,1705911408598,200.0,0.00021997,7]
[312468900,1705911795011,10000.0,0.00029,30]
[312468950,1705912233016,-486.03262571,0.00014344,2]
[312468951,1705912233028,-2999.73574367,0.00014344,2]
[312468952,1705912233037,-595.13721922,0.00014345,2]
[312468953,1705912233047,-154.82968734,0.00014345,2]
[312468954,1705912233055,-588.35431441,0.00014346,2]
[312468955,1705912233065,-323.59110907,0.00014346,2]
[312468956,1705912233074,-1579.39395429,0.00014346,2]
[312468957,1705912233083,-154.82968734,0.00014346,2]
[312468958,1705912233092,-21686.1459775,0.00014347,2]
[312468959,1705912233101,-1993.49479484,0.00014347,2]
[312468960,1705912233110,-27150.52789965,0.00014349,2]
[312468961,1705912233119,-1252.74537918,0.00014352,2]
[312468962,1705912233128,-711.64153599,0.00014378,2]
[312468963,1705912233137,-679.97177576,0.00014379,2]
[312468964,1705912233146,-166.96688877,0.00014383,2]
[312468965,1705912233155,-977.54301686,0.00014393,2]
[312468966,1705912233165,-256.41716073,0.00014396,2]
[312468967,1705912233173,-272.55691777,0.000165,2]
[312468968,1705912233182,-5071.54881009,0.00017898,2]
[312469025,1705912238192,-540.12268041,0.00017898,2]
[312469027,1705912238203,-1617.27718252,0.00017898,2]
[312469030,1705912238214,-3309.01974133,0.00017898,2]
[312469032,1705912238223,-24900.0,0.00018732,2]
[312469034,1705912238232,-3000.0,0.00018732,2]
[312469036,1705912238241,-170.417245,0.00019178,2]
[312469038,1705912238251,-850.30063575,0.0002,2]
[312469040,1705912238263,-1197.97622761,0.0002,2]
[312469042,1705912238272,-327.51224259,0.00021,2]
[312469043,1705912238281,-166.666666,0.00021918,2]
[312469045,1705912238292,-425.98515357,0.00022,2]
[312469048,1705912238302,-168.544046,0.00023635,2]
[312469050,1705912238311,-4014.03339386,0.00024,2]
[312469054,1705912238321,-166.666666,0.00024482,2]
[312469056,1705912238330,-824.33300328,0.000247,2]
[312469060,1705912238345,-16832.94243252,0.00025566,2]
[312469063,1705912238354,-2562.6031287,0.00026318,2]
[312469066,1705912238363,-620.00026401,0.000264,2]
[312469068,1705912238372,-2359.30159524,0.00027008,5]
[312469071,1705912238381,-500.0,0.00027397,2]
[312469074,1705912238390,-155.0,0.00027425,2]
[312469078,1705912238400,-500.0,0.00027534,2]
[312469081,1705912238409,-500.0,0.00027671,2]
[312469083,1705912238419,-457.5024889,0.00027671,2]
[312469086,1705912238428,-281.3626415,0.00027671,2]
[312469101,1705912238551,-199.1966855,0.00027671,2]
[312469103,1705912238561,-398.393371,0.00027671,2]
[312469105,1705912238570,-397.2832138,0.00027671,2]
[312469107,1705912238579,-620.0000132,0.0002772,2]
[312469109,1705912238588,-500.0,0.00027808,2]
[312469111,1705912238597,-5180.65166756,0.00027849,2]
[312469113,1705912238606,-500.0,0.00027945,2]
[312469115,1705912238616,-290.32272867,0.00028,2]
[312469116,1705912238625,-307.07161549,0.00028,2]
[312469117,1705912238634,-355.59370813,0.00028,2]
[312469118,1705912238643,-500.0,0.00028082,2]
[312469119,1705912238653,-605.99892036,0.00028102,2]
[312469120,1705912238662,-156.13791059,0.0002813,2]
[312469121,1705912238671,-546.30725825,0.0002813,2]
[312469122,1705912238680,-1570.28017035,0.0002813,2]
[312469123,1705912238689,-5269.78874867,0.0002813,2]
[312469124,1705912238699,-591.63751077,0.00028219,2]
[312469125,1705912238708,-286.95267366,0.00028274,2]
[312469126,1705912238718,-172.3440855,0.00028416,2]
[312469127,1705912238727,-1462.3439755,0.00028416,2]
[312469128,1705912238736,-3032.29062989,0.00028416,2]
[312469129,1705912238745,-316.21756321,0.00028416,2]
[312469130,1705912238754,-2439.81609647,0.00028416,2]
[312469131,1705912238764,-290.75691903,0.00028425,3]
[312469132,1705912238773,-50000.0,0.00028425,5]
[312469133,1705912238783,-50000.0,0.00028425,5]
[312469134,1705912238792,-59582.26341588,0.00028425,5]
[312469135,1705912238802,-177.76922486,0.00028425,2]
[312469136,1705912238811,-2913.33897401,0.00028425,5]
[312469137,1705912238820,-210.7718519,0.00028493,2]
[312469139,1705912238829,-1500.0,0.000285,2]
[312469140,1705912238838,-619.150641,0.00028767,2]
[312469141,1705912238846,-155.0,0.00028795,2]
[312469142,1705912238855,-300.0,0.000288,14]
[312469144,1705912238864,-1880.79357717,0.00029,2]
[312469146,1705912238875,-1000.0,0.00029,29]
[312469148,1705912238884,-151.0,0.00029,2]
[312469150,1705912238893,-151.0,0.00029,2]
[312469152,1705912238902,-261.58936724,0.00029,2]
[312469154,1705912238911,-600.0,0.00029,2]
[312469156,1705912238921,-1826.00758456,0.00029,2]
[312469158,1705912238930,-547.94303379,0.00029,2]
[312469160,1705912238939,-763.99864371,0.00029,2]
[312469162,1705912238949,-364.01300421,0.00029,5]
[312469164,1705912238958,-300.0,0.00029,2]
[312469166,1705912238967,-154.82968734,0.00029,7]
[312469168,1705912238976,-620.00000066,0.00029106,2]
[312469170,1705912238986,-153.0,0.00029178,2]
[312469172,1705912238995,-199.1966855,0.00029315,2]
[312469174,1705912239004,-199.1966855,0.00029315,2]
[312469176,1705912239013,-199.1966855,0.00029315,2]
[312469178,1705912239021,-1500.0,0.000295,2]
[312469180,1705912239030,-619.150641,0.00029648,2]
[312469182,1705912239039,-151.0,0.00029699,2]
[312469184,1705912239048,-151.0,0.00029699,2]
[312469186,1705912239057,-286.470398,0.00029699,2]
[312469188,1705912239066,-286.470398,0.00029699,2]
[312469190,1705912239076,-252.599152,0.00029699,2]
[312469192,1705912239085,-252.599152,0.00029699,2]
[312469194,1705912239094,-151.0,0.00029699,2]
[312469196,1705912239104,-10000.0,0.00029699,2]
[312469198,1705912239113,-10000.0,0.00029699,2]
[312469200,1705912239123,-10000.0,0.00029699,2]
[312469202,1705912239137,-10000.0,0.00029699,2]
[312469204,1705912239147,-10000.0,0.00029699,2]
[312469206,1705912239156,-405.0,0.00029699,2]
[312469208,1705912239167,-405.0,0.00029699,2]
[312469210,1705912239177,-340.375728,0.00029699,2]
[312469212,1705912239186,-340.375728,0.00029699,2]
[312469214,1705912239196,-151.0,0.00029699,2]
[312469216,1705912239205,-151.0,0.000297,2]
[312469218,1705912239215,-151.0,0.000297,2]
[312469220,1705912239225,-57689.10225266,0.0002979,7]
[312469222,1705912239237,-151.0,0.0002979,2]
[312469224,1705912239247,-282.666,0.0002979,2]
[312469226,1705912239257,-286.470398,0.0002979,2]
[312469228,1705912239269,-286.470398,0.0002979,2]
[312469230,1705912239278,-252.599152,0.0002979,2]
[312469232,1705912239287,-252.599152,0.0002979,2]
[312469234,1705912239296,-151.0,0.0002979,2]
[312469236,1705912239305,-643.688412,0.0002979,2]
[312469238,1705912239314,-643.688412,0.0002979,2]
[312469240,1705912239323,-3223.57924299,0.0002979,2]
[312469253,1705912239445,-3732.35486287,0.0002979,2]
[312469569,1705912244074,-2187.63844542,0.00029787,3]
[312469757,1705913432264,-561.64006482,0.0001352,2]
[312469758,1705913432273,-191.41031682,0.0001352,2]
[312469759,1705913432282,-261.13863683,0.0001352,2]
[312469760,1705913432291,-154.81422293,0.0001352,2]
[312469761,1705913432300,-876.39189184,0.00013521,2]
[312469762,1705913432310,-175.22193864,0.00013521,2]
[312469763,1705913432319,-154.81422293,0.00013521,2]
[312469764,1705913432328,-262.3367316,0.00013521,2]
[312469765,1705913432337,-2002.20651061,0.00013521,2]
[312469766,1705913432346,-199.25222227,0.00013522,2]
[312469767,1705913432356,-154.81422293,0.00013522,2]
[312469768,1705913432365,-1439.19025016,0.00013522,2]
[312469769,1705913432373,-21686.1459775,0.00013522,2]
[312469770,1705913432382,-977.99536434,0.00013523,2]
[312469771,1705913432392,-3485.76836938,0.00013523,2]
[312469772,1705913432402,-163.12898653,0.00013524,2]
[312469773,1705913432411,-161.02224773,0.00013524,2]
[312469774,1705913432420,-1468.66343637,0.00013524,2]
[312469775,1705913432429,-595.13721922,0.00013524,2]
[312469776,1705913432439,-7960.18375069,0.00013525,2]
[312469777,1705913432448,-1250.900689,0.00013529,2]
[312469778,1705913432456,-154.82968734,0.00014459,2]
[312469779,1705913432466,-32419.9722053,0.00014464,2]
[312469780,1705913432475,-2977.5109836,0.00014546,2]
[312469781,1705913432484,-154.81422293,0.00015,2]
[312469782,1705913432494,-687.96014716,0.00015,2]
[312469783,1705913432503,-24900.0,0.00015467,2]
[312469784,1705913432512,-250.0,0.00015713,2]
[312469785,1705913432522,-245.1085969,0.00016188,2]
[312469786,1705913432531,-272.55691777,0.000165,2]
[312469787,1705913432540,-1266.7890629,0.00017142,2]
[312469788,1705913432550,-154.82968734,0.00017157,2]
[312469789,1705913432559,-163.4202506,0.0001732,2]
[312469790,1705913432569,-286.95267366,0.00018075,2]
[312469791,1705913432578,-1462.3439755,0.00018166,2]
[312469792,1705913432587,-2439.81609647,0.00018166,2]
[312469793,1705913432597,-3032.29062989,0.00018166,2]
[312469794,1705913432606,-170.79827,0.00019178,2]
[312469795,1705913432615,-850.30063575,0.0002,2]
[312469796,1705913432628,-678.6288756,0.0002,2]
[312469797,1705913432637,-316.21756321,0.0002,2]
[312469798,1705913432647,-1570.28017035,0.00023,2]
[312469799,1705913432658,-1187.78,0.0002399,3]
[312469800,1705913432668,-4014.03339386,0.00024,2]
[312469801,1705913432677,-1710.4,0.0002494,3]
[312469802,1705913432686,-2052.48,0.0002495,3]
[312469803,1705913432696,-5269.78874867,0.00025,2]
[312469804,1705913432706,-605.99892036,0.00025,2]
[312469805,1705913432716,-155.0,0.00027434,2]
[312469806,1705913432725,-1758.4020858,0.0002769,2]
[312469807,1705913432734,-329.53567279,0.00027999,2]
[312469808,1705913432743,-290.32272867,0.00028,2]
[312469809,1705913432753,-1425.33,0.00028424,3]
[312469810,1705913432762,-290.75691903,0.00028434,3]
[312469811,1705913432771,-5663.77573921,0.00028434,5]
[312469812,1705913432780,-50000.0,0.00028434,5]
[312469813,1705913432789,-55207.25797279,0.00028434,5]
[312469814,1705913432799,-30994.95930322,0.00028434,5]
[312469815,1705913432808,-1500.0,0.000285,2]
[312469816,1705913432817,-425.80364021,0.00028711,2]
[312469817,1705913432826,-156.02710907,0.00028711,2]
[312469818,1705913432837,-526.75292248,0.00028711,2]
[312469819,1705913432847,-178.91876323,0.00028711,2]
[312469820,1705913432858,-243.13309117,0.00028711,2]
[312469821,1705913432867,-294.88989743,0.00028711,2]
[312469822,1705913432877,-500.0,0.00028711,2]
[312469823,1705913432887,-522.11697668,0.00028712,2]
[312469824,1705913432897,-903.63325516,0.00028712,2]
[312469825,1705913432908,-309.65937468,0.00028712,2]
[312469826,1705913432917,-619.150641,0.00028767,2]
[312469827,1705913432927,-155.0,0.00028804,2]
[312469828,1705913432937,-500.0,0.00028848,2]
[312469829,1705913432947,-591.63751077,0.00028985,2]
[312469830,1705913432956,-1880.79357717,0.00029,2]
[312469831,1705913432965,-153.0,0.00029178,2]
[312469832,1705913432974,-199.1966855,0.00029315,2]
[312469833,1705913432983,-199.1966855,0.00029315,2]
[312469834,1705913432992,-199.1966855,0.00029315,2]
[312469835,1705913433002,-1500.0,0.000295,2]
[312469836,1705913433011,-151.36107663,0.00029534,2]
[312469837,1705913433021,-210.7718519,0.00029589,2]
[312469838,1705913433030,-1000.0,0.00029603,7]
[312469839,1705913433040,-619.150641,0.00029648,2]
[312469840,1705913433050,-274664.49843975,0.00029698,2]
[312469841,1705913433059,-343.030253,0.000297,14]
[312469842,1705913433068,-4000.0,0.000297,4]
[312469843,1705913433078,-4011.11984949,0.00029777,2]
[312469844,1705913433088,-547.94303379,0.00029787,2]
[312469845,1705913433097,-154.82968734,0.00029787,7]
[312469846,1705913433107,-300.0,0.00029787,2]
[312469847,1705913433116,-763.99864371,0.00029787,2]
[312469848,1705913433125,-600.0,0.00029787,2]
[312469849,1705913433135,-261.58936724,0.00029787,2]
[312469850,1705913433145,-1826.00758456,0.00029787,2]
[312469851,1705913433155,-364.01300421,0.00029787,5]
[312469852,1705913433165,-164.98581571,0.00029787,2]
[312469853,1705913433174,-307.07161549,0.00029787,2]
[312469854,1705913433183,-1194.16666959,0.00029787,2]
[312469855,1705913433192,-323.52155902,0.00029789,2]
[312469856,1705913433202,-232.881258,0.0002979,2]
[312469857,1705913433211,-587.4419017,0.00029795,2]
[312469858,1705913433221,-158.22796835,0.00029795,2]
[312469859,1705913433230,-290.99918412,0.00029795,2]
[312469860,1705913433240,-229.95519864,0.00029795,2]
[312469861,1705913433249,-886.34996459,0.00029795,2]
[312469862,1705913433258,-327.38324213,0.00029795,2]
[312469863,1705913433267,-275.34954115,0.00029798,10]
[312469864,1705913433276,-154.86062544,0.00029798,2]
[312469865,1705913433285,-555.36580163,0.00029798,2]
[312469866,1705913433294,-2836.67729407,0.00029798,2]
[312469867,1705913433303,-2034.57165769,0.00029798,2]
[312469868,1705913433312,-170.92363548,0.00029798,2]
[312469869,1705913433322,-1741.02914519,0.00029798,2]
[312469870,1705913433331,-154.86062544,0.00029798,2]
[312469871,1705913433341,-15220.19994985,0.00029798,2]
[312469872,1705913433350,-155.02455539,0.000298,2]
[312469873,1705913433359,-535.04170787,0.000298,2]
[312469874,1705913433369,-608.13565426,0.000298,2]
[312469875,1705913433379,-182.90507862,0.000298,2]
[312469876,1705913433388,-309.50479234,0.000298,2]
[312469877,1705913433397,-1109.51816487,0.000298,2]
[312469878,1705913433408,-157.42490565,0.000298,2]
[312469879,1705913433416,-5000.0,0.00029872,5]
[312469880,1705913433426,-222.42222138,0.00029934,2]
[312469881,1705913433437,-212.77839025,0.00029991,2]
[312469882,1705913433445,-227.44458321,0.00029991,2]
[312469883,1705913433455,-470.52459336,0.00029998,2]
[312469884,1705913433464,-263.21986175,0.00029998,7]
[312469885,1705913433473,-151.0,0.00029999,2]
[312469886,1705913433482,-150.0,0.0003,2]
[312469887,1705913433491,-78392.00922977,0.0003,2]
[312469888,1705913433501,-304.15955042,0.0003,4]
[312469889,1705913433510,-464.67563146,0.0003,2]
[312469890,1705913433520,-2371.37507479,0.0003,2]
[312469891,1705913433529,-244.14912804,0.0003,4]
[312469892,1705913433538,-657.40715545,0.0003,3]
[312469893,1705913433548,-1000.0,0.0003,30]
[312469894,1705913433557,-1919.51264673,0.0003,3]
[312469895,1705913433566,-151.0,0.0003,2]
[312469896,1705913433575,-151.0,0.0003,2]
[312469897,1705913433584,-252.599152,0.0003,2]
[312469898,1705913433594,-252.599152,0.0003,2]
[312469899,1705913433603,-286.470398,0.0003,2]
[312469900,1705913433617,-286.470398,0.0003,2]
[312469901,1705913433627,-340.375728,0.0003,2]
[312469902,1705913433636,-340.375728,0.0003,2]
[312469903,1705913433646,-3946.26081243,0.0003,4]
[312469904,1705913433657,-643.688412,0.0003,2]
[312469905,1705913433666,-643.688412,0.0003,2]
[312469906,1705913433676,-150.244211,0.0003,2]
[312469907,1705913433685,-10000.0,0.0003,2]
[312469908,1705913433695,-174.0,0.0003,2]
[312469909,1705913433704,-10000.0,0.0003,2]
[312469910,1705913433713,-10000.0,0.0003,2]
[312469911,1705913433723,-10000.0,0.0003,2]
[312469912,1705913433732,-10000.0,0.0003,2]
[312469913,1705913433741,-405.0,0.0003,2]
[312469914,1705913433751,-405.0,0.0003,2]
[312469915,1705913433760,-151.0,0.00030037,2]
[312469916,1705913433769,-252.599152,0.00030037,2]
[312469917,1705913433778,-151.0,0.00030037,2]
[312469918,1705913433787,-286.470398,0.00030037,2]
[312469919,1705913433796,-286.470398,0.00030037,2]
[312469920,1705913433805,-340.375728,0.00030037,2]
[312469921,1705913433815,-340.375728,0.00030037,2]
[312469922,1705913433825,-643.688412,0.00030037,2]
[312469923,1705913433834,-643.688412,0.00030037,2]
[312469924,1705913433844,-10000.0,0.00030037,2]
[312469925,1705913433853,-10000.0,0.00030037,2]
[312469926,1705913433862,-10000.0,0.00030037,2]
[312469927,1705913433872,-10000.0,0.00030037,2]
[312469928,1705913433881,-10000.0,0.00030037,2]
[312469929,1705913433891,-405.0,0.00030037,2]
[312469930,1705913433900,-405.0,0.00030037,2]
[312469931,1705913433910,-153.48719041,0.00030072,7]
[312469932,1705913433919,-5000.0,0.0003008,5]
[312469933,1705913433928,-327.38081339,0.00030134,2]
[312469934,1705913433937,-500.0,0.00030134,2]
[312469935,1705913433947,-500.0,0.00030134,2]
[312469936,1705913434066,-500.0,0.00030134,2]
[312469937,1705913434077,-396.18143592,0.00030134,2]
[312469938,1705913434086,-500.0,0.00030134,2]
[312469939,1705913434095,-500.0,0.00030134,2]
[312469940,1705913434105,-500.0,0.00030134,2]
[312469941,1705913434114,-500.0,0.00030134,2]
[312469942,1705913434123,-500.0,0.00030134,2]
[312469943,1705913434132,-500.0,0.00030134,2]
[312469944,1705913434141,-500.0,0.00030134,2]
[312469945,1705913434150,-500.0,0.00030134,2]
[312469946,1705913434160,-500.0,0.00030134,2]
[312469947,1705913434170,-225.74623395,0.00030134,2]
[312469948,1705913434178,-580.19768246,0.00030134,2]
[312469949,1705913434187,-500.0,0.00030134,2]
[312469950,1705913434196,-190.90639326,0.00030134,2]
[312469951,1705913434206,-500.0,0.00030134,2]
[312469952,1705913434215,-500.0,0.00030134,2]
[312469953,1705913434225,-424.4818818,0.00030134,2]
[312469954,1705913434234,-500.0,0.00030134,2]
[312469955,1705913434243,-500.0,0.00030134,2]
[312469956,1705913434252,-500.0,0.00030134,2]
[312469957,1705913434262,-382.10921841,0.00030134,2]
[312469958,1705913434271,-500.0,0.00030134,2]
[312469959,1705913434280,-500.0,0.00030134,2]
[312469960,1705913434289,-500.0,0.00030134,2]
[312469961,1705913434299,-500.0,0.00030134,2]
[312469962,1705913434308,-500.0,0.00030134,2]
[312469963,1705913434318,-500.0,0.00030134,2]
[312469964,1705913434327,-500.0,0.00030134,2]
[312469965,1705913434336,-500.0,0.00030134,2]
[312469966,1705913434347,-500.0,0.00030134,2]
[312469967,1705913434356,-500.0,0.00030134,2]
[312469968,1705913434365,-500.0,0.00030134,2]
[312469969,1705913434375,-356.12047045,0.00030134,2]
[312469970,1705913434384,-500.0,0.00030134,2]
[312469971,1705913434393,-500.0,0.00030134,2]
[312469972,1705913434403,-500.0,0.00030134,2]
[312469973,1705913434412,-500.0,0.00030134,2]
[312469974,1705913434421,-528.43687364,0.00030134,2]
[312469975,1705913434430,-264.21843681,0.00030134,2]
[312469976,1705913434439,-1233.79,0.00030134,2]
[312469977,1705913434449,-1233.79,0.00030134,2]
[312469978,1705913434458,-1233.79,0.00030134,2]
[312469979,1705913434468,-1233.79,0.00030134,2]
[312469980,1705913434477,-1233.79,0.00030134,2]
[312469981,1705913434486,-1233.79,0.00030134,2]
[312469982,1705913434495,-1233.79,0.00030134,2]
[312469983,1705913434504,-1233.79,0.00030134,2]
[312469984,1705913434514,-1233.79,0.00030134,2]
[312469985,1705913434523,-1233.79,0.00030134,2]
[312469986,1705913434532,-412.23443416,0.00030135,4]
[312469987,1705913434541,-500.0,0.00030135,4]
[312469988,1705913434554,-500.0,0.00030135,4]
[312469989,1705913434563,-500.0,0.00030135,4]
[312469990,1705913434573,-500.0,0.00030135,4]
[312469991,1705913434582,-472.32396904,0.00030135,4]
[312469992,1705913434591,-500.0,0.00030135,4]
[312469993,1705913434601,-289.11674189,0.00030135,4]
[312469994,1705913434610,-500.0,0.00030135,4]
[312469995,1705913434624,-500.0,0.00030135,4]
[312469996,1705913434633,-500.0,0.00030135,4]
[312469997,1705913434643,-500.0,0.00030135,4]
[312469998,1705913434656,-415.58473419,0.00030135,4]
[312469999,1705913434665,-500.0,0.00030135,4]
[312470000,1705913434675,-500.0,0.00030135,4]
[312470001,1705913434684,-500.0,0.00030135,4]
[312470002,1705913434694,-353.71714742,0.00030135,4]
[312470003,1705913434703,-500.0,0.00030135,4]
[312470004,1705913434712,-500.0,0.00030135,4]
[312470005,1705913434721,-500.0,0.00030135,4]
[312470006,1705913434730,-500.0,0.00030135,4]
[312470007,1705913434739,-500.0,0.00030135,4]
[312470008,1705913434747,-500.0,0.00030135,4]
[312470009,1705913434757,-500.0,0.00030135,4]
[312470010,1705913434766,-500.0,0.00030135,4]
[312470011,1705913434775,-500.0,0.00030135,4]
[312470012,1705913434784,-500.0,0.00030135,4]
[312470013,1705913434793,-246.99394933,0.00030135,4]